bitfinex/quotes_SOLUSD_20240816
["timestamp","ask_amount","ask_price","bid_price","bid_amount"]
[1723807789019,6.9574,143.73,143.72,0.8457537]
[1723807790057,6.9571,143.74,143.72,0.8457537]
[1723807790479,10.4,143.73,143.72,0.8457537]
[1723807790752,0.12549,143.73,143.72,0.8457537]
[1723807790963,6.9571,143.74,143.72,0.8457537]
[1723807792973,6.9574,143.73,143.72,0.8457537]
[1723807795970,7.08289,143.73,143.72,0.8457537]
[1723807796185,7.33387,143.73,143.72,0.8457537]
[1723807797884,6.9573,143.74,143.72,0.8457537]
[1723807800692,7.2637852,143.79,143.73,6.5293]
[1723807801002,6.9551,143.78,143.73,13.4866]
[1723807801175,6.9551,143.78,143.73,6.5293]
[1723807801176,10.4,143.78,143.73,6.5293]
[1723807801372,6.956,143.76,143.73,6.5293]
[1723807801696,10.4,143.76,143.72,0.8457537]
[1723807801871,6.9573,143.74,143.72,0.8457537]
[1723807802380,6.9574,143.73,143.72,0.8457537]
[1723807804096,7.08289,143.73,143.72,0.8457537]
[1723807804305,7.33387,143.73,143.72,0.8457537]
[1723807805223,27.33387,143.73,143.72,0.8457537]
[1723807807124,72.45936,143.73,143.72,0.8457537]
[1723807811947,6.96,143.68,143.65,23.0388]
[1723807812932,6.9589,143.7,143.65,30.0001]
[1723807813851,75.77647,143.73,143.65,30.0001]
[1723807813852,6.9586,143.71,143.65,30.0001]
[1723807814727,6.958,143.72,143.65,23.0388]
[1723807814912,6.958,143.72,143.67,6.9603]
[1723807815312,6.958,143.72,143.66,6.9607]
[1723807815534,6.9588,143.71,143.65,30.0]
[1723807815732,6.959,143.7,143.65,30.0]
[1723807816034,30.52549,143.73,143.65,30.0]
[1723807816035,6.9586,143.71,143.65,30.0]
[1723807816246,6.9586,143.71,143.66,6.9605]
[1723807817639,6.958,143.72,143.67,6.9603]
[1723807818023,6.958,143.72,143.66,6.9607]
[1723807818426,6.958,143.72,143.67,6.96]
[1723807819519,6.958,143.72,143.66,6.9607]
[1723807819720,30.52549,143.73,143.66,6.9607]
[1723807819963,6.9586,143.71,143.66,6.9607]
[1723807820765,6.9589,143.7,143.65,29.9998]
[1723807821554,20.12549,143.73,143.66,6.9607]
[1723807821555,6.9586,143.71,143.66,6.9607]
[1723807821848,6.9586,143.71,143.66,13.04062047]
[1723807823871,6.9586,143.71,143.65,23.0388]
[1723807823872,6.958,143.72,143.67,6.96]
[1723807824151,20.0,143.73,143.68,8.35138063]
[1723807824355,20.0,143.73,143.67,10.4]
[1723807824356,6.03050666,143.79,143.67,20.12549]
[1723807824522,6.9557,143.77,143.72,6.9575]
[1723807824750,6.9551,143.78,143.73,6.9574]
[1723807825925,6.9547,143.79,143.74,6.9569]
[1723807826125,6.954,143.81,143.73,15.1504]
[1723807826563,6.954,143.81,143.73,21.22749513]
[1723807826865,6.954,143.81,143.75,6.9563]
[1723807829126,6.954,143.81,143.73,15.1504]
[1723807829127,6.9542,143.8,143.74,6.9569]
[1723807829328,6.9542,143.8,143.73,15.1504]
[1723807829329,6.9546,143.79,143.73,22.1077]
[1723807829552,6.9551,143.78,143.73,22.1077]
[1723807831064,6.9537,143.81,143.76,6.9559]
[1723807831222,6.9545,143.79,143.74,6.0101]
[1723807831425,6.9542,143.8,143.74,12.9667]
[1723807831658,26.9537,143.81,143.74,6.0101]
[1723807831956,26.9537,143.81,143.76,6.9559]
[1723807831957,6.9537,143.81,143.76,6.9559]
[1723807832139,6.9537,143.81,143.75,6.9563]
[1723807833361,6.9541,143.8,143.75,6.9563]
[1723807835051,0.12549,143.83,143.74,16.4101]
[1723807835233,10.4,143.86,143.78,16.4049]
[1723807835435,6.9515,143.86,143.8,6.9539]
[1723807835648,6.9517,143.85,143.8,6.9539]
[1723807836175,6.9511,143.87,143.81,6.9535]
[1723807836336,10.4,143.88,143.81,6.9535]
[1723807836875,6.9521,143.84,143.79,13.549]
[1723807837246,17.375,143.89,143.8,1.39057455]
[1723807837247,6.9518,143.85,143.8,1.39057455]
[1723807837458,6.9518,143.85,143.79,13.549]
[1723807838828,6.9518,143.85,143.8,6.954]
[1723807839457,10.4,143.87,143.81,6.9535]
[1723807839663,20.0,143.86,143.81,6.9535]
[1723807839964,6.9512,143.86,143.81,6.9535]
[1723807840951,6.9508,143.87,143.82,8.34331364]
[1723807841331,6.9514,143.86,143.82,1.39031364]
[1723807841983,6.9514,143.86,143.81,6.9535]
[1723807842845,6.9508,143.87,143.82,6.9531]
[1723807843064,6.9502,143.89,143.8,11.79025573]
[1723807843374,6.9502,143.89,143.84,6.9521]
[1723807843577,6.9502,143.89,143.85,7.62128107]
[1723807844560,6.9494,143.9,143.85,13.1826]
[1723807844765,6.9494,143.9,143.86,16.0467]
[1723807845086,6.9498,143.89,143.86,16.0467]
[1723807849093,17.3699,143.93,143.86,16.0467]
[1723807849298,23.81402672,143.95,143.87,1.38982243]
[1723807849299,7.26322672,143.95,143.87,1.38982243]
[1723807849503,6.9483,143.93,143.87,8.34032243]
[1723807849798,6.9483,143.92,143.87,8.34032243]
[1723807849962,6.9483,143.92,143.87,6.9505]
[1723807850790,10.4,143.95,143.88,1.38972704]
[1723807851091,64.408,143.99,143.86,26.4467]
[1723807851092,20.0,143.94,143.86,26.4467]
[1723807851298,20.0,143.94,143.87,45.12549]
[1723807851462,40.1703,143.99,143.87,45.12549]
[1723807851463,6.9469,143.95,143.87,45.12549]
[1723807851996,6.9469,143.95,143.88,10.4]
[1723807852368,6.9469,143.95,143.89,1.38942825]
[1723807852564,6.9469,143.95,143.88,10.4]
[1723807853097,6.9469,143.95,143.9,6.9491]
[1723807853302,6.9469,143.95,143.91,22.2492]
[1723807857469,6.9459,143.97,143.91,22.2492]
[1723807857797,6.9459,143.97,143.92,1.38924856]
[1723807858106,10.4,144.0,143.93,6.9474]
[1723807858107,6.9454,143.98,143.93,6.9474]
[1723807858805,6.946,143.97,143.92,6.9483]
[1723807859092,17.3615,144.0,143.91,22.2492]
[1723807859295,0.12549,143.98,143.91,22.2492]
[1723807859500,0.37647,143.98,143.91,22.2492]
[1723807860066,10.4,143.97,143.91,22.2492]
[1723807860388,6.9474,143.94,143.91,22.2492]
[1723807860598,17.49179,143.96,143.87,21.0979]
[1723807860768,6.9492,143.9,143.87,21.0979]
[1723807861197,10.4,143.9,143.87,15.0495]
[1723807861399,10.4,143.9,143.84,6.0484]
[1723807861890,26.01,143.9,143.84,6.0484]
[1723807862780,6.9503,143.88,143.84,6.0484]
[1723807864208,26.01,143.9,143.84,6.0484]
[1723807864416,6.9503,143.88,143.84,6.0484]
[1723807864616,6.9503,143.88,143.84,7.4386374]
[1723807865320,6.9503,143.88,143.84,7.43854044]
[1723807865489,6.9503,143.88,143.84,6.0484]
[1723807870319,7.26034479,143.94,143.84,6.0484]
[1723807870541,33.27034479,143.94,143.84,6.0484]
[1723807870904,26.01,143.92,143.85,6.9516]
[1723807871215,6.9494,143.9,143.84,13.0004]
[1723807871724,6.9498,143.89,143.84,13.0004]
[1723807871931,26.01,143.92,143.85,6.9516]
[1723807871932,6.9492,143.9,143.85,6.9516]
[1723807872101,26.01,143.92,143.85,6.9516]
[1723807873009,6.9493,143.9,143.85,6.9516]
[1723807875434,6.9493,143.9,143.84,13.0004]
[1723807876110,26.01,143.92,143.86,6.951]
[1723807877115,6.9488,143.91,143.86,6.951]
[1723807877944,6.9488,143.91,143.84,6.0484]
[1723807877945,6.9493,143.9,143.85,6.9516]
[1723807883642,6.9493,143.9,143.86,1.39003744]
[1723807883818,6.9493,143.9,143.85,6.9516]
[1723807884022,17.3493,143.9,143.85,6.9516]
[1723807884233,6.9497,143.89,143.84,13.0001]
[1723807885523,6.9503,143.88,143.84,6.0484]
[1723807885722,0.12549,143.89,143.83,15.0495]
[1723807886039,6.9517,143.85,143.83,15.0495]
[1723807886233,6.9517,143.85,143.8,13.0818]
[1723807886234,6.9524,143.84,143.8,22.5683]
[1723807886445,6.952,143.85,143.8,29.5223]
[1723807886830,17.3511,143.87,143.8,22.5683]
[1723807887040,6.9512,143.86,143.82,6.9527]
[1723807887236,10.4,143.87,143.82,6.9527]
[1723807887449,6.9507,143.87,143.82,6.9529]
[1723807887821,6.9503,143.88,143.83,6.9525]
[1723807888441,6.9499,143.89,143.84,6.9521]
[1723807888725,33.8548,143.95,143.82,16.6416]
[1723807888943,20.0,143.93,143.82,16.6416]
[1723807889154,10.4,143.91,143.82,16.6416]
[1723807889320,10.4,143.89,143.82,16.6416]
[1723807889521,10.4,143.91,143.83,1.39019607]
[1723807889974,10.4,143.91,143.82,16.6416]
[1723807890239,6.9499,143.89,143.84,6.9521]
[1723807890922,6.9499,143.89,143.82,23.5943]
[1723807890923,6.9511,143.87,143.82,23.5943]
[1723807891555,6.9512,143.86,143.82,16.6416]
[1723807891755,0.12549,143.88,143.82,16.6416]
[1723807891756,6.9517,143.85,143.82,16.6416]
[1723807891923,17.3517,143.85,143.82,16.6416]
[1723807892938,6.9522,143.84,143.82,16.6416]
[1723807893340,17.3517,143.85,143.82,16.6416]
[1723807894060,6.9517,143.85,143.82,16.6416]
[1723807895541,17.3517,143.85,143.82,16.6416]
[1723807895931,6.9521,143.84,143.8,6.1279]
[1723807896159,7.07759,143.84,143.8,6.1279]
[1723807896450,6.9521,143.84,143.8,6.1279]
[1723807902033,17.3746,143.89,143.8,6.1279]
[1723807902876,10.4,143.89,143.8,36.5279]
[1723807903056,17.3713,143.92,143.82,15.5979]
[1723807903278,6.95,143.89,143.84,6.9518]
[1723807903828,6.9502,143.88,143.83,6.9524]
[1723807904160,10.4,143.91,143.82,15.5979]
[1723807904457,26.9495,143.9,143.85,6.9514]
[1723807904657,6.9497,143.89,143.84,6.952]
[1723807907054,10.4,143.89,143.82,15.5979]
[1723807907244,10.4,143.87,143.82,15.5979]
[1723807907641,17.351,143.87,143.82,22.5509]
[1723807907853,6.9512,143.86,143.82,15.5979]
[1723807908963,6.9522,143.84,143.82,15.5979]
[1723807909260,17.3518,143.85,143.82,15.5979]
[1723807910238,6.9522,143.84,143.82,15.5979]
[1723807910565,17.3518,143.85,143.82,15.5979]
[1723807913532,6.9518,143.85,143.82,15.5979]
[1723807914465,27.26196764,143.9,143.82,15.5979]
[1723807914679,6.9507,143.87,143.82,22.5507]
[1723807915034,17.3503,143.88,143.83,6.9526]
[1723807920354,0.12549,143.89,143.82,15.5979]
[1723807920355,7.07539,143.89,143.84,6.9521]
[1723807921474,6.9499,143.89,143.84,6.9521]
[1723807922357,17.3494,143.9,143.85,14.76442219]
[1723807922876,17.3494,143.9,143.85,13.3743]
[1723807923677,6.9497,143.89,143.85,13.3743]
[1723807924483,6.9497,143.89,143.85,6.4227]
[1723807926786,6.9502,143.88,143.85,6.4227]
[1723807927084,17.3502,143.88,143.85,6.4227]
[1723807928563,17.3502,143.88,143.82,15.5979]
[1723807928564,7.07649,143.87,143.82,22.551]
[1723807928885,7.20198,143.87,143.82,22.551]
[1723807929059,6.951,143.87,143.82,22.551]
[1723807929661,6.9512,143.86,143.82,22.551]
[1723807929973,0.12549,143.87,143.82,22.551]
[1723807929974,6.9517,143.85,143.82,15.5979]
[1723807930778,17.3513,143.86,143.82,15.5979]
[1723807931000,10.4,143.84,143.81,6.2075]
[1723807931301,10.4,143.82,143.78,15.8769]
[1723807931999,10.4,143.82,143.78,22.8319]
[1723807932198,0.12549,143.83,143.78,22.8319]
[1723807932199,0.25098,143.83,143.78,22.8319]
[1723807932402,7.20388,143.83,143.78,22.8319]
[1723807936466,17.60348,143.84,143.79,6.9545]
[1723807936671,6.9525,143.84,143.79,6.9545]
[1723807942220,6.9525,143.84,143.8,1.39064299]
[1723807942391,6.9525,143.84,143.79,6.9545]
[1723807942597,6.9525,143.84,143.79,8.34514217]
[1723807942796,6.9525,143.84,143.79,6.9545]
[1723807943008,6.9525,143.84,143.79,8.34513784]
[1723807943326,6.9518,143.85,143.8,8.34464331]
[1723807943521,6.951,143.87,143.82,6.953]
[1723807943695,6.951,143.87,143.82,13.1213]
[1723807950234,17.3503,143.88,143.83,22.4161]
[1723807950424,6.9503,143.88,143.84,1.39024401]
[1723807950596,6.9503,143.88,143.84,8.34234401]
[1723807950797,6.9503,143.88,143.84,1.39024401]
[1723807950999,6.9503,143.88,143.83,22.4162]
[1723807952301,10.4,143.9,143.83,15.4638]
[1723807952509,6.9517,143.85,143.83,15.4638]
[1723807952723,10.4,143.86,143.82,6.1683]
[1723807952724,6.9521,143.84,143.82,6.1683]
[1723807953028,10.4,143.84,143.79,22.9516]
[1723807953207,6.9526,143.83,143.79,15.9974]
[1723807953800,6.9536,143.81,143.79,15.9974]
[1723807954003,10.4,143.82,143.79,15.9974]
[1723807954004,17.3532,143.82,143.79,15.9974]
[1723807956131,6.9536,143.81,143.79,15.9974]
[1723807956638,17.47979,143.8,143.75,29.3758]
[1723807956934,10.4,143.8,143.76,6.9559]
[1723807957136,6.9539,143.81,143.76,6.9559]
[1723807957857,17.73057,143.8,143.75,29.3758]
[1723807958015,17.73057,143.8,143.75,22.4194]
[1723807958016,6.9547,143.79,143.75,22.4194]
[1723807958535,10.65098,143.8,143.75,22.4194]
[1723807958536,7.08049,143.78,143.75,16.0681]
[1723807958705,6.956,143.76,143.75,16.0681]
[1723807958906,17.3561,143.76,143.72,22.235]
[1723807960701,17.3561,143.76,143.68,6.2543]
[1723807960702,0.12549,143.75,143.68,6.2543]
[1723807960928,10.4,143.74,143.68,22.0559]
[1723807961416,17.3573,143.74,143.68,22.0559]
[1723807961621,17.3573,143.74,143.68,29.0154]
[1723807962042,0.12549,143.73,143.68,29.0154]
[1723807962247,7.20858,143.73,143.68,29.0154]
[1723807963953,0.25098,143.73,143.68,22.0559]
[1723807964265,17.48479,143.7,143.65,6.9612]
[1723807965439,7.21038,143.69,143.64,22.809]
[1723807965702,17.36,143.68,143.64,22.809]
[1723807966657,10.4,143.68,143.64,22.809]
[1723807966863,7.21038,143.69,143.64,22.809]
[1723807967041,7.21038,143.69,143.64,29.7708]
[1723807967250,7.21038,143.69,143.64,22.809]
[1723807967251,0.25098,143.69,143.64,22.809]
[1723807967754,0.12549,143.71,143.64,22.809]
[1723807967948,0.25098,143.71,143.64,22.809]
[1723807968765,7.20948,143.71,143.66,6.9608]
[1723807968944,10.4,143.72,143.64,22.809]
[1723807969144,24.65105645,143.75,143.66,10.4]
[1723807969145,17.65915645,143.75,143.66,10.4]
[1723807969368,10.4,143.75,143.66,10.4]
[1723807969583,6.9573,143.74,143.69,6.9594]
[1723807970854,17.3884,143.78,143.66,46.06]
[1723807971054,17.3884,143.78,143.71,6.9584]
[1723807971055,6.9563,143.76,143.71,6.9584]
[1723807971255,6.9556,143.77,143.72,6.9578]
[1723807971561,6.9561,143.76,143.71,28.496]
[1723807971756,6.9561,143.76,143.72,6.9579]
[1723807971956,6.9556,143.77,143.72,6.9579]
[1723807972173,17.3848,143.81,143.73,6.9574]
[1723807972174,6.9554,143.78,143.73,6.9574]
[1723807972482,6.9554,143.78,143.73,8.34873654]
[1723807972774,6.9554,143.78,143.73,6.9574]
[1723807976951,6.9557,143.77,143.72,6.9579]
[1723807977556,6.9561,143.76,143.71,28.4962]
[1723807977763,7.08199,143.75,143.71,21.5379]
[1723807979174,0.12549,143.74,143.7,6.9587]
[1723807979355,7.20798,143.74,143.7,6.9587]
[1723807979561,7.20798,143.74,143.69,6.9592]
[1723807981189,0.12549,143.73,143.69,6.9592]
[1723807981505,0.25098,143.73,143.69,6.9592]
[1723807981658,7.08249,143.74,143.69,6.9592]
[1723807986083,0.12549,143.74,143.67,22.7067]
[1723807986289,0.12549,143.74,143.66,6.9607]
[1723807986290,6.9584,143.71,143.66,6.9607]
[1723807986769,33.0184,143.71,143.66,6.9607]
[1723807986971,0.12549,143.7,143.65,6.961]
[1723807987284,6.9585,143.71,143.67,6.9603]
[1723807987662,6.9585,143.71,143.64,15.9249]
[1723807987663,6.9586,143.71,143.66,6.9608]
[1723807987871,7.08309,143.73,143.68,6.9598]
[1723807988174,7.08309,143.73,143.67,6.96]
[1723807988175,7.08349,143.72,143.67,6.96]
[1723807988377,7.20898,143.72,143.67,6.96]
[1723807988896,0.12549,143.71,143.64,22.8862]
[1723807989197,0.25098,143.71,143.64,15.9249]
[1723807989407,0.12549,143.69,143.64,15.9249]
[1723807989969,6.96,143.68,143.63,13.1683]
[1723807990174,0.12549,143.69,143.64,6.9618]
[1723807990175,7.08499,143.69,143.64,6.9618]
[1723807991080,6.9595,143.69,143.64,6.9618]
[1723807991463,7.20998,143.7,143.65,6.9612]
[1723807992568,0.12549,143.7,143.66,8.35276621]
[1723807992883,52.08399,143.71,143.66,6.9607]
[1723807992884,6.9585,143.71,143.66,6.9607]
[1723807993272,17.3918,143.75,143.64,16.4219]
[1723807993481,6.9578,143.73,143.68,6.9598]
[1723807995967,7.20808,143.74,143.69,6.9593]
[1723807997399,7.20808,143.74,143.65,47.45174067]
[1723807997565,7.20808,143.74,143.69,6.9593]
[1723807998081,17.3875,143.73,143.68,6.9597]
[1723807998484,6.9581,143.72,143.67,6.9603]
[1723808000403,6.9588,143.71,143.64,26.8519]
[1723808000708,6.9588,143.71,143.66,6.9608]
[1723808000899,7.08439,143.7,143.65,6.9612]
[1723808001909,6.9599,143.68,143.64,16.4219]
[1723808002117,6.9599,143.68,143.63,6.9619]
[1723808002905,6.9604,143.67,143.62,6.9626]
[1723808004387,6.9604,143.67,143.63,6.9623]
[1723808004587,6.96,143.68,143.63,6.9623]
[1723808004789,0.12549,143.7,143.6,26.07384943]
[1723808005107,7.08419,143.71,143.66,6.9607]
[1723808005309,6.9587,143.71,143.66,6.9607]
[1723808009181,7.08449,143.7,143.65,6.9611]
[1723808009401,6.959,143.7,143.65,6.9611]
[1723808009784,0.12549,143.69,143.64,17.4038]
[1723808010103,0.12549,143.69,143.64,24.3655]
[1723808010104,7.08519,143.69,143.64,24.3655]
[1723808010413,6.9597,143.69,143.64,24.3655]
[1723808014811,0.25098,143.7,143.65,6.9613]
[1723808014812,7.08439,143.7,143.65,6.9613]
[1723808015013,6.9589,143.7,143.65,6.9613]
[1723808015385,6.9589,143.7,143.66,6.9608]
[1723808016110,6.9589,143.7,143.65,6.9612]
[1723808016282,7.21048,143.69,143.64,24.3653]
[1723808017084,6.9593,143.7,143.65,6.961]
[1723808017286,26.34098,143.71,143.64,17.4038]
[1723808017287,6.9585,143.71,143.64,17.4038]
[1723808017511,6.9585,143.71,143.66,6.9607]
[1723808018410,15.7905,143.74,143.66,6.9607]
[1723808018411,15.7905,143.74,143.67,1.39190322]
[1723808018650,6.9578,143.73,143.68,6.9597]
[1723808018783,6.9579,143.72,143.68,6.9597]
[1723808020498,6.9579,143.72,143.67,6.9602]
[1723808020701,7.08399,143.71,143.66,17.4018]
[1723808021012,6.9589,143.7,143.66,24.3626]
[1723808021522,6.9589,143.7,143.64,16.3306]
[1723808021523,7.08509,143.69,143.64,16.3306]
[1723808021711,6.9596,143.69,143.64,16.3306]
[1723808021897,7.08459,143.7,143.65,6.9613]
[1723808022107,0.12549,143.69,143.65,6.9613]
[1723808026504,7.08459,143.7,143.65,6.9613]
[1723808026724,7.08459,143.7,143.65,8.35342036]
[1723808026915,7.08459,143.7,143.66,6.9608]
[1723808027797,6.9591,143.7,143.65,6.9612]
[1723808028108,17.51409,143.71,143.66,6.9608]
[1723808028422,0.12549,143.72,143.67,6.96]
[1723808028423,6.9581,143.72,143.67,6.96]
[1723808028623,6.9581,143.72,143.68,6.9598]
[1723808028856,15.7905,143.74,143.69,6.9594]
[1723808029121,6.9575,143.73,143.69,6.9594]
[1723808029819,6.9575,143.73,143.68,6.9598]
[1723808031503,15.7905,143.74,143.67,17.4006]
[1723808031504,22.21437059,143.79,143.67,42.94962686]
[1723808031709,6.9568,143.75,143.7,6.9587]
[1723808032094,6.957,143.74,143.7,6.9587]
[1723808037128,6.957,143.74,143.71,1.39157722]
[1723808037300,6.957,143.74,143.7,6.9587]
[1723808037496,6.957,143.74,143.7,8.35023923]
[1723808037694,6.957,143.74,143.7,6.9587]
[1723808038120,6.957,143.74,143.69,24.3574]
[1723808039618,6.957,143.74,143.7,6.9589]
[1723808040195,10.43,143.74,143.67,12.51910172]
[1723808040400,10.43,143.74,143.67,6.4401]
[1723808040817,6.9576,143.73,143.68,6.9596]
[1723808041336,17.388,143.72,143.67,13.4003]
[1723808041503,10.43,143.72,143.67,6.9602]
[1723808042214,10.43,143.7,143.66,6.07962921]
[1723808042531,0.12549,143.69,143.64,22.41022921]
[1723808042713,0.25098,143.69,143.64,22.41022921]
[1723808042915,7.21068,143.69,143.64,29.37202921]
[1723808043134,10.43,143.68,143.64,6.07962921]
[1723808043439,6.9612,143.66,143.61,13.04282921]
[1723808043599,6.9612,143.66,143.62,6.07962921]
[1723808045415,6.9612,143.66,143.61,13.04282921]
[1723808045936,6.9604,143.67,143.62,6.9627]
[1723808046117,6.9604,143.67,143.62,14.43640133]
[1723808046437,6.9604,143.67,143.63,6.9623]
[1723808048017,84.36572871,143.78,143.62,10.43]
[1723808048018,17.3932,143.74,143.62,10.43]
[1723808048224,30.43,143.72,143.62,16.51134547]
[1723808048419,30.43,143.72,143.63,6.08134547]
[1723808049034,6.9594,143.69,143.64,6.9615]
[1723808049340,0.12549,143.71,143.62,16.51134547]
[1723808049509,6.9588,143.71,143.66,6.9607]
[1723808049817,6.9589,143.7,143.65,6.9612]
[1723808050623,6.9589,143.7,143.66,6.9608]
[1723808052621,6.9586,143.71,143.66,6.9608]
[1723808055517,6.959,143.7,143.65,6.9612]
[1723808055721,6.96,143.68,143.64,24.3658]
[1723808055920,6.9595,143.69,143.64,24.3658]
[1723808056129,6.9599,143.68,143.64,24.3658]
[1723808056334,6.9595,143.69,143.64,24.3658]
[1723808058539,6.9599,143.68,143.64,17.404]
[1723808059633,6.9599,143.68,143.64,18.79620096]
[1723808060925,6.9599,143.68,143.64,17.404]
[1723808062654,16.5108,143.73,143.66,17.4018]
[1723808062952,16.5108,143.73,143.66,24.3623]
[1723808062953,6.9584,143.71,143.66,24.3623]
[1723808063323,6.9584,143.71,143.67,1.39187203]
[1723808063638,6.9584,143.71,143.66,24.3623]
[1723808063834,6.9584,143.71,143.67,1.39186952]
[1723808064235,6.9584,143.71,143.66,24.3623]
[1723808065774,6.958,143.72,143.67,6.9601]
[1723808066828,6.9585,143.71,143.67,6.9601]
[1723808068277,6.9585,143.71,143.66,24.3625]
[1723808069764,6.9585,143.71,143.67,1.39188155]
[1723808071062,6.9585,143.71,143.66,24.3625]
[1723808071455,6.959,143.7,143.66,17.4018]
[1723808071841,6.959,143.7,143.65,29.8426]
[1723808072343,6.9595,143.69,143.65,29.8426]
[1723808075761,0.12549,143.7,143.65,16.3851]
[1723808075987,10.43,143.69,143.65,16.3851]
[1723808076192,6.9599,143.68,143.65,16.3851]
[1723808076490,10.43,143.69,143.63,24.367]
[1723808076491,6.9604,143.67,143.63,24.367]
[1723808077379,6.9604,143.67,143.63,17.4049]
[1723808079462,6.9604,143.67,143.63,18.79722738]
[1723808080682,7.08549,143.68,143.63,24.3671]
[1723808080989,6.9595,143.69,143.64,8.35399423]
[1723808081495,6.9595,143.69,143.64,6.9617]
[1723808082177,6.96,143.68,143.63,24.367]
[1723808082379,6.96,143.68,143.63,30.44801212]
[1723808082689,6.96,143.68,143.63,24.367]
[1723808082894,6.96,143.68,143.64,8.35399753]
[1723808083178,6.96,143.68,143.65,1.39213432]
[1723808083573,6.96,143.68,143.64,6.9618]
[1723808083968,10.43,143.69,143.61,33.8644865]
[1723808084173,10.43,143.69,143.62,13.04376787]
[1723808084374,10.43,143.69,143.63,13.04316787]
[1723808084574,10.43,143.69,143.63,6.9622]
[1723808084769,10.43,143.69,143.63,8.35440683]
[1723808084972,10.43,143.69,143.63,8.35440868]
[1723808085496,6.96,143.68,143.64,6.08096396]
[1723808086661,6.96,143.68,143.64,13.04276396]
[1723808086879,6.96,143.68,143.64,6.9618]
[1723808087490,6.96,143.68,143.64,13.04276396]
[1723808087686,6.96,143.68,143.64,6.9618]
[1723808088196,10.43,143.69,143.65,6.9612]
[1723808088197,6.9594,143.69,143.65,6.9612]
[1723808088569,6.9594,143.69,143.64,6.9616]
[1723808089068,6.9594,143.69,143.65,6.9613]
[1723808089413,6.9594,143.69,143.65,13.04085733]
[1723808089789,6.9594,143.69,143.65,6.9613]
[1723808090409,6.9594,143.69,143.64,25.75801164]
[1723808090877,6.9594,143.69,143.65,1.39211122]
[1723808091282,6.9594,143.69,143.64,24.3659]
[1723808091501,6.9594,143.69,143.64,25.75801056]
[1723808091876,6.9594,143.69,143.64,24.3659]
[1723808092571,6.9594,143.69,143.65,7.47143926]
[1723808092792,6.9599,143.68,143.65,1.39211018]
[1723808093000,6.9597,143.69,143.65,1.39211018]
[1723808093202,6.9597,143.69,143.64,24.3659]
[1723808094805,6.9597,143.69,143.65,1.3921146]
[1723808097908,6.9597,143.69,143.64,24.3659]
[1723808099707,6.9597,143.69,143.65,14.43262528]
[1723808100004,6.9597,143.69,143.65,8.35330805]
[1723808100207,6.9585,143.71,143.66,8.35267091]
[1723808101407,6.959,143.7,143.65,6.9612]
[1723808102904,6.9594,143.69,143.64,24.3657]
[1723808105208,6.9594,143.69,143.61,23.4344865]
[1723808105209,6.9605,143.67,143.62,6.9625]
[1723808105513,6.9605,143.67,143.63,6.08044942]
[1723808105695,6.9605,143.67,143.62,6.9625]
[1723808105893,6.9605,143.67,143.63,6.08151781]
[1723808106093,0.50196,143.68,143.61,47.8049865]
[1723808106389,0.25098,143.68,143.63,6.962]
[1723808106618,6.9602,143.68,143.63,6.962]
[1723808106811,6.9602,143.68,143.64,7.47266113]
[1723808106982,6.9602,143.68,143.64,1.39213957]
[1723808107316,6.9602,143.68,143.63,6.962]